bitfinex-derivatives/quotes_ETHF0:USTF0_20260125
["timestamp","ask_amount","ask_price","bid_price","bid_amount"]
[1769304162068,4.00768248,2956.8,2955.7,0.14074005]
[1769304162272,0.00310736,2957.0,2955.7,0.14074005]
[1769304162473,4.00724142,2956.9,2955.7,0.14074005]
[1769304162673,4.00724142,2956.8,2955.7,0.14074005]
[1769304162975,0.00310736,2957.0,2955.7,0.14074005]
[1769304163269,4.00692377,2956.9,2955.7,0.14074005]
[1769304163569,4.00692377,2956.8,2955.7,0.14074005]
[1769304163773,0.00310736,2957.0,2955.7,0.14074005]
[1769304164067,4.00651581,2956.9,2955.7,0.14074005]
[1769304164272,4.00651581,2956.8,2955.7,0.14074005]
[1769304164582,3.39010736,2957.0,2955.7,0.14074005]
[1769304164781,4.00581685,2956.9,2955.7,0.14074005]
[1769304164979,4.00581685,2956.8,2955.7,0.14074005]
[1769304165274,3.39010736,2957.0,2955.7,0.14074005]
[1769304165476,4.00552944,2956.9,2955.7,0.14074005]
[1769304165674,4.00552944,2956.8,2955.7,0.14074005]
[1769304165975,3.39010736,2957.0,2955.7,0.14074005]
[1769304166166,4.00552315,2956.9,2955.7,0.14074005]
[1769304166370,4.00552315,2956.8,2955.7,0.14074005]
[1769304166575,3.39010736,2957.0,2955.7,0.14074005]
[1769304166780,4.00530988,2956.9,2955.7,0.14074005]
[1769304166980,4.00530988,2956.8,2955.7,0.14074005]
[1769304167179,3.39010736,2957.0,2955.7,0.14074005]
[1769304167380,4.00560644,2956.9,2955.7,0.14074005]
[1769304167682,4.00560644,2956.8,2955.7,0.14074005]
[1769304167882,3.39010736,2957.0,2955.7,0.14074005]
[1769304168179,4.00538891,2956.9,2955.7,0.14074005]
[1769304168368,4.00538891,2956.8,2955.7,0.14074005]
[1769304168575,3.39010736,2957.0,2955.7,0.14074005]
[1769304168775,4.00521348,2956.9,2955.7,0.14074005]
[1769304168969,3.39010736,2957.0,2955.7,0.14074005]
[1769304168970,4.00521348,2956.8,2955.7,0.14074005]
[1769304169176,3.39010736,2957.0,2955.7,0.14074005]
[1769304169477,4.00521972,2956.9,2955.7,0.14074005]
[1769304169676,4.00521972,2956.8,2955.7,0.14074005]
[1769304169975,3.39010736,2957.0,2955.7,0.14074005]
[1769304170176,4.00511482,2956.9,2955.7,0.14074005]
[1769304170376,4.00511482,2956.8,2955.7,0.14074005]
[1769304170578,3.39010736,2957.0,2955.7,0.14074005]
[1769304170773,4.00501662,2956.9,2955.7,0.14074005]
[1769304170981,4.00501662,2956.8,2955.7,0.14074005]
[1769304171284,3.39010736,2957.0,2955.7,0.14074005]
[1769304171485,4.00494635,2956.9,2955.7,0.14074005]
[1769304171784,4.00494635,2956.8,2955.7,0.14074005]
[1769304172086,3.39010736,2957.0,2955.7,0.14074005]
[1769304172282,4.00494608,2956.9,2955.7,0.14074005]
[1769304172480,4.00494608,2956.8,2955.7,0.14074005]
[1769304172683,3.39010736,2957.0,2955.7,0.14074005]
[1769304172983,4.00491468,2956.9,2955.7,0.14074005]
[1769304173182,4.00491468,2956.8,2955.7,0.14074005]
[1769304173379,3.39010736,2957.0,2955.7,0.14074005]
[1769304173582,4.00490588,2956.9,2955.7,0.14074005]
[1769304173782,4.00490588,2956.8,2955.7,0.14074005]
[1769304173984,3.39010736,2957.0,2955.7,0.14074005]
[1769304174186,4.00512972,2956.9,2955.7,0.14074005]
[1769304174484,4.00512972,2956.8,2955.7,0.14074005]
[1769304174786,3.39010736,2957.0,2955.7,0.14074005]
[1769304174985,4.00524739,2956.9,2955.7,0.14074005]
[1769304175283,4.00524739,2956.8,2955.7,0.14074005]
[1769304175587,3.39010736,2957.0,2955.7,0.14074005]
[1769304175781,4.00531228,2956.9,2955.7,0.14074005]
[1769304175980,4.00531228,2956.8,2955.7,0.14074005]
[1769304176180,3.39010736,2957.0,2955.7,0.14074005]
[1769304176382,4.00539613,2956.9,2955.7,0.14074005]
[1769304176687,4.00539613,2956.8,2955.7,0.14074005]
[1769304176986,4.00539613,2956.7,2955.7,0.14074005]
[1769304177188,3.39010736,2957.0,2955.7,0.14074005]
[1769304177383,4.00517579,2956.9,2955.7,0.14074005]
[1769304177584,4.00517579,2956.8,2955.7,0.14074005]
[1769304177782,4.00517579,2956.7,2955.7,0.14074005]
[1769304177986,3.39010736,2957.0,2955.7,0.14074005]
[1769304178186,4.00570678,2956.9,2955.7,0.14074005]
[1769304178387,4.00570678,2956.8,2955.7,0.14074005]
[1769304178689,4.00553537,2956.7,2955.7,0.14074005]
[1769304178888,3.39010736,2957.0,2955.7,0.14074005]
[1769304179086,4.00557121,2956.9,2955.7,0.14074005]
[1769304179383,4.00557121,2956.8,2955.7,0.14074005]
[1769304179684,4.00557121,2956.7,2955.7,0.14074005]
[1769304179885,3.39010736,2957.0,2955.7,0.14074005]
[1769304180089,4.00552389,2956.9,2955.7,0.14074005]
[1769304180277,4.00552389,2956.8,2955.7,0.14074005]
[1769304180478,4.00552389,2956.7,2955.7,0.14074005]
[1769304180681,2.126,2956.6,2955.7,0.14074005]
[1769304192394,2.126,2956.6,2955.6,0.00302349]
[1769304202304,4.02603246,2956.5,2955.6,0.00302349]
[1769304202497,2.126,2956.6,2955.6,0.00302349]
[1769304202693,4.02603156,2956.5,2955.6,0.00302349]
[1769304202904,2.126,2956.6,2955.6,0.00302349]
[1769304203099,4.02603541,2956.5,2955.6,0.00302349]
[1769304203300,2.126,2956.6,2955.6,0.00302349]
[1769304203500,4.02625273,2956.5,2955.6,0.00302349]
[1769304203711,2.126,2956.6,2955.6,0.00302349]
[1769304203911,4.02625327,2956.5,2955.6,0.00302349]
[1769304204110,2.126,2956.6,2955.6,0.00302349]
[1769304204309,4.02626062,2956.5,2955.6,0.00302349]
[1769304204510,2.126,2956.6,2955.6,0.00302349]
[1769304204711,4.0265308,2956.5,2955.6,0.00302349]
[1769304204913,2.126,2956.6,2955.6,0.00302349]
[1769304205110,4.0265308,2956.5,2955.6,0.00302349]
[1769304205310,2.126,2956.6,2955.6,0.00302349]
[1769304205513,4.02689979,2956.5,2955.6,0.00302349]
[1769304205709,2.126,2956.6,2955.6,0.00302349]
[1769304205910,4.02690006,2956.5,2955.6,0.00302349]
[1769304206209,2.126,2956.6,2955.6,0.00302349]
[1769304206404,4.02744277,2956.5,2955.6,0.00302349]
[1769304206612,2.126,2956.6,2955.6,0.00302349]
[1769304206813,4.02744257,2956.5,2955.6,0.00302349]
[1769304207014,2.126,2956.6,2955.6,0.00302349]
[1769304207215,4.02741514,2956.5,2955.6,0.00302349]
[1769304207417,2.126,2956.6,2955.6,0.00302349]
[1769304207711,4.02745636,2956.5,2955.6,0.00302349]
[1769304207911,2.126,2956.6,2955.6,0.00302349]
[1769304208118,4.0274567,2956.5,2955.6,0.00302349]
[1769304208317,2.126,2956.6,2955.6,0.00302349]
[1769304208617,4.02782064,2956.5,2955.6,0.00302349]
[1769304208820,2.126,2956.6,2955.6,0.00302349]
[1769304209013,4.02782256,2956.5,2955.6,0.00302349]
[1769304209215,2.126,2956.6,2955.6,0.00302349]
[1769304209514,4.02781865,2956.5,2955.6,0.00302349]
[1769304209717,2.126,2956.6,2955.6,0.00302349]
[1769304209915,4.02782235,2956.5,2955.6,0.00302349]
[1769304210114,2.126,2956.6,2955.6,0.00302349]
[1769304210315,4.02782477,2956.5,2955.6,0.00302349]
[1769304210516,2.126,2956.6,2955.6,0.00302349]
[1769304210716,4.02782504,2956.5,2955.6,0.00302349]
[1769304210915,2.126,2956.6,2955.6,0.00302349]
[1769304211112,4.02782483,2956.5,2955.6,0.00302349]
[1769304211314,2.126,2956.6,2955.6,0.00302349]
[1769304211520,4.02524514,2956.5,2955.6,0.00302349]
[1769304211821,2.126,2956.6,2955.6,0.00302349]
[1769304212118,4.02525244,2956.5,2955.6,0.00302349]
[1769304212418,2.126,2956.6,2955.6,0.00302349]
[1769304212609,4.02526457,2956.5,2955.6,0.00302349]
[1769304212813,2.126,2956.6,2955.6,0.00302349]
[1769304213020,4.02532661,2956.5,2955.6,0.00302349]
[1769304213223,2.126,2956.6,2955.6,0.00302349]
[1769304213423,4.02533956,2956.5,2955.6,0.00302349]
[1769304213720,2.126,2956.6,2955.6,0.00302349]
[1769304213924,4.02534323,2956.5,2955.6,0.00302349]
[1769304214109,2.126,2956.6,2955.6,0.00302349]
[1769304214312,4.02561077,2956.5,2955.6,0.00302349]
[1769304214521,2.126,2956.6,2955.6,0.00302349]
[1769304214727,4.02653049,2956.5,2955.6,0.00302349]
[1769304215022,2.126,2956.6,2955.6,0.00302349]
[1769304215221,4.0264059,2956.5,2955.6,0.00302349]
[1769304215413,2.126,2956.6,2955.6,0.00302349]
[1769304215616,4.02640184,2956.5,2955.6,0.00302349]
[1769304215813,2.126,2956.6,2955.6,0.00302349]
[1769304216023,4.02639123,2956.5,2955.6,0.00302349]
[1769304216224,2.126,2956.6,2955.6,0.00302349]
[1769304216423,4.02643758,2956.5,2955.6,0.00302349]
[1769304216720,2.126,2956.6,2955.6,0.00302349]
[1769304217020,4.02643784,2956.5,2955.6,0.00302349]
[1769304217222,2.126,2956.6,2955.6,0.00302349]
[1769304217418,4.02645249,2956.5,2955.6,0.00302349]
[1769304217620,2.126,2956.6,2955.6,0.00302349]
[1769304217820,4.02645311,2956.5,2955.6,0.00302349]
[1769304218020,0.77854987,2956.9,2955.6,0.00302349]
[1769304218223,6.16647823,2956.8,2955.6,0.00302349]
[1769304218419,4.02647823,2956.7,2955.6,0.00302349]
[1769304218719,4.02647823,2956.6,2955.6,0.00302349]
[1769304218917,4.02647823,2956.5,2955.6,0.00302349]
[1769304219120,2.14,2956.8,2955.6,0.00302349]
[1769304219417,4.02650124,2956.7,2955.6,0.00302349]
[1769304219617,4.02650124,2956.6,2955.6,0.00302349]
[1769304219920,4.02650124,2956.5,2955.6,0.00302349]
[1769304220116,2.14,2956.8,2955.6,0.00302349]
[1769304220316,4.02652673,2956.7,2955.6,0.00302349]
[1769304220521,4.02652673,2956.6,2955.6,0.00302349]
[1769304220716,4.02652673,2956.5,2955.6,0.00302349]
[1769304221025,2.14,2956.8,2955.6,0.00302349]
[1769304221212,4.02655284,2956.7,2955.6,0.00302349]
[1769304221414,4.02655284,2956.6,2955.6,0.00302349]
[1769304221613,4.02655284,2956.5,2955.6,0.00302349]
[1769304221824,2.14,2956.8,2955.6,0.00302349]
[1769304222022,4.02655747,2956.7,2955.6,0.00302349]
[1769304222221,4.02655747,2956.6,2955.6,0.00302349]
[1769304222423,4.02655747,2956.5,2955.6,0.00302349]
[1769304222625,2.14,2956.8,2955.6,0.00302349]
[1769304222830,4.02658482,2956.7,2955.6,0.00302349]
[1769304223019,4.02658482,2956.6,2955.6,0.00302349]
[1769304223220,4.02658482,2956.5,2955.6,0.00302349]
[1769304223420,2.14,2956.8,2955.6,0.00302349]
[1769304223720,4.02654936,2956.7,2955.6,0.00302349]
[1769304223919,4.02654936,2956.6,2955.6,0.00302349]
[1769304224124,4.02654936,2956.5,2955.6,0.00302349]
[1769304224321,2.14,2956.8,2955.6,0.00302349]
[1769304224521,4.02651736,2956.7,2955.6,0.00302349]
[1769304224723,4.02651736,2956.6,2955.6,0.00302349]
[1769304224923,4.02651736,2956.5,2955.6,0.00302349]
[1769304225125,0.92304517,2956.6,2955.6,0.00302349]
[1769304225324,4.02645805,2956.5,2955.6,0.00302349]
[1769304225524,0.92304517,2956.6,2955.6,0.00302349]
[1769304225825,4.02645779,2956.5,2955.6,0.00302349]
[1769304226027,0.92304517,2956.6,2955.6,0.00302349]
[1769304226221,4.02640119,2956.5,2955.6,0.00302349]
[1769304226422,0.92304517,2956.6,2955.6,0.00302349]
[1769304226624,4.02640092,2956.5,2955.6,0.00302349]
[1769304226820,0.92304517,2956.6,2955.6,0.00302349]
[1769304227024,4.02640119,2956.5,2955.6,0.00302349]
[1769304227225,0.92304517,2956.6,2955.6,0.00302349]
[1769304227425,4.02634917,2956.5,2955.6,0.00302349]
[1769304227626,0.92304517,2956.6,2955.6,0.00302349]
[1769304227821,4.02634912,2956.5,2955.6,0.00302349]
[1769304228028,0.92304517,2956.6,2955.6,0.00302349]
[1769304228229,4.02630673,2956.5,2955.6,0.00302349]
[1769304228426,0.92304517,2956.6,2955.6,0.00302349]
[1769304228733,4.02630279,2956.5,2955.6,0.00302349]
[1769304228930,0.92304517,2956.6,2955.6,0.00302349]
[1769304229230,4.02630306,2956.5,2955.6,0.00302349]
[1769304229432,0.92304517,2956.6,2955.6,0.00302349]
[1769304229637,4.02626784,2956.5,2955.6,0.00302349]
[1769304229838,0.92304517,2956.6,2955.6,0.00302349]
[1769304230029,4.02626784,2956.5,2955.6,0.00302349]
[1769304230230,0.92304517,2956.6,2955.6,0.00302349]
[1769304230430,4.02623677,2956.5,2955.6,0.00302349]
[1769304230634,0.92304517,2956.6,2955.6,0.00302349]
[1769304230929,4.02623677,2956.5,2955.6,0.00302349]
[1769304231128,0.92304517,2956.6,2955.6,0.00302349]
[1769304231324,4.02620991,2956.5,2955.6,0.00302349]
[1769304231526,0.92304517,2956.6,2955.6,0.00302349]
[1769304231726,4.02620677,2956.5,2955.6,0.00302349]
[1769304231929,0.92304517,2956.6,2955.6,0.00302349]
[1769304232138,4.02620893,2956.5,2955.6,0.00302349]
[1769304232328,0.92304517,2956.6,2955.6,0.00302349]
[1769304232529,4.02618546,2956.5,2955.6,0.00302349]
[1769304232728,0.92304517,2956.6,2955.6,0.00302349]
[1769304232937,4.02618546,2956.5,2955.6,0.00302349]
[1769304233137,0.92304517,2956.6,2955.6,0.00302349]
[1769304233331,4.0261616,2956.5,2955.6,0.00302349]
[1769304233532,0.92304517,2956.6,2955.6,0.00302349]
[1769304233830,4.0261616,2956.5,2955.6,0.00302349]
[1769304234030,0.92304517,2956.6,2955.6,0.00302349]
[1769304234234,6.01313971,2956.5,2955.6,0.00302349]
[1769304234440,1.987,2956.5,2955.6,0.00302349]
[1769304264558,0.14732185,2957.0,2955.6,0.00302349]
[1769304264759,9.53504496,2956.9,2955.6,0.00302349]
[1769304264961,4.01683047,2956.8,2955.6,0.00302349]
[1769304271574,1.987,2956.7,2955.6,0.14984051]
[1769304271770,4.0146156,2956.6,2955.6,0.00302349]
[1769304271970,4.01478325,2956.5,2955.6,0.00302349]
[1769304272171,1.987,2956.7,2955.6,0.00302349]
[1769304272370,4.0147855,2956.6,2955.6,0.00302349]
[1769304272573,4.0147855,2956.5,2955.6,0.00302349]
[1769304272766,1.987,2956.7,2955.6,0.00302349]
[1769304272969,4.01478637,2956.6,2955.6,0.00302349]
[1769304273170,4.01478637,2956.5,2955.6,0.00302349]
[1769304273370,1.987,2956.7,2955.6,0.00302349]
[1769304273571,4.01477388,2956.6,2955.6,0.00302349]
[1769304273868,4.01477388,2956.5,2955.6,0.00302349]
[1769304274069,1.987,2956.7,2955.6,0.00302349]
[1769304274276,4.01477388,2956.6,2955.6,0.00302349]
[1769304274474,4.01477388,2956.5,2955.6,0.00302349]
[1769304274774,1.987,2956.7,2955.6,0.00302349]
[1769304274975,4.01476247,2956.6,2955.6,0.00302349]
[1769304275177,4.01476247,2956.5,2955.6,0.00302349]
[1769304275377,1.987,2956.7,2955.6,0.00302349]
[1769304275577,4.01474621,2956.6,2955.6,0.00302349]
[1769304275876,4.01474621,2956.5,2955.6,0.00302349]
[1769304276173,2.13068819,2956.7,2955.6,0.00302349]
[1769304276376,4.01473823,2956.6,2955.6,0.00302349]
[1769304276575,4.01473823,2956.5,2955.6,0.00302349]
[1769304276768,2.13068819,2956.7,2955.6,0.00302349]
[1769304276967,4.01479351,2956.6,2955.6,0.00302349]
[1769304277172,4.01479351,2956.5,2955.6,0.00302349]
[1769304277470,2.13068819,2956.7,2955.6,0.00302349]
[1769304277666,4.01477431,2956.6,2955.6,0.00302349]
[1769304277870,4.01477431,2956.5,2955.6,0.00302349]
[1769304278167,2.13068819,2956.7,2955.6,0.00302349]
[1769304278368,4.0147192,2956.6,2955.6,0.00302349]
[1769304278569,4.0147192,2956.5,2955.6,0.00302349]
[1769304278774,2.13068819,2956.7,2955.6,0.00302349]
[1769304279078,4.01470036,2956.6,2955.6,0.00302349]
[1769304279279,4.01470036,2956.5,2955.6,0.00302349]
[1769304279470,1.987,2956.7,2955.6,0.00302349]
[1769304279670,4.01452895,2956.6,2955.6,0.00302349]
[1769304279976,1.987,2956.7,2955.6,0.00302349]
[1769304280170,4.01452866,2956.6,2955.6,0.00302349]
[1769304280371,1.987,2956.7,2955.6,0.00302349]
[1769304280569,4.01433058,2956.6,2955.6,0.00302349]
[1769304280772,1.987,2956.7,2955.6,0.00302349]
[1769304281076,4.01433008,2956.6,2955.6,0.00302349]
[1769304281264,1.987,2956.7,2955.6,0.00302349]
[1769304281469,4.0141895,2956.6,2955.6,0.14333157]
[1769304281764,1.987,2956.7,2955.6,0.14333157]
[1769304281964,4.01418879,2956.6,2955.6,0.14333157]
[1769304282176,1.987,2956.8,2955.6,0.14333157]
[1769304282364,4.01399763,2956.7,2955.6,0.14333157]
[1769304282567,4.01399763,2956.6,2955.6,0.14333157]
[1769304282764,1.987,2956.8,2955.6,0.14333157]
[1769304282980,4.01399725,2956.7,2955.6,0.14333157]
[1769304283170,4.01399725,2956.6,2955.6,0.14333157]
[1769304283372,1.987,2956.8,2955.6,0.14333157]
[1769304283572,4.01385539,2956.7,2955.6,0.14333157]
[1769304283773,1.987,2956.8,2955.6,0.14333157]
[1769304283974,4.01382147,2956.7,2955.6,0.14333157]
[1769304284173,1.987,2956.8,2955.6,0.14333157]
[1769304284374,4.01382147,2956.7,2955.6,0.14333157]
[1769304284676,1.987,2956.8,2955.6,0.14333157]
[1769304284876,4.01334552,2956.7,2955.6,0.14333157]
[1769304285078,1.987,2956.8,2955.6,0.14333157]
[1769304285379,4.0133454,2956.7,2955.6,0.14333157]
[1769304285580,1.987,2956.8,2955.6,0.14333157]
[1769304285781,4.01301447,2956.7,2955.6,0.14333157]
[1769304285981,1.987,2956.8,2955.6,0.14333157]
[1769304286184,4.01301366,2956.7,2955.6,0.14333157]
[1769304286382,1.987,2956.8,2955.6,0.14333157]
[1769304286584,4.01275797,2956.7,2955.6,0.14333157]
[1769304286777,1.987,2956.8,2955.6,0.14333157]
[1769304286977,4.01275797,2956.7,2955.6,0.14333157]
[1769304287177,0.00310736,2957.0,2955.6,0.14333157]
[1769304287376,6.1745929,2956.9,2955.6,0.14333157]
[1769304287578,2.163,2956.9,2955.6,0.14333157]
[1769304288180,0.00310736,2957.0,2955.6,0.14333157]
[1769304288379,5.99789204,2956.9,2955.6,0.14333157]
[1769304288579,1.987,2956.9,2955.6,0.14333157]
[1769304298790,2.13068819,2956.9,2955.6,0.14333157]
[1769304300492,1.67768819,2956.9,2955.6,0.14333157]
[1769304305291,0.14368819,2956.9,2955.6,0.14333157]
[1769304305494,0.00310736,2957.0,2955.6,0.14333157]
[1769304305794,0.00310736,2957.0,2955.9,0.14549856]
[1769304318902,0.00310736,2957.0,2956.1,0.77812982]
[1769304321610,0.00310736,2957.0,2956.1,0.91800952]
[1769304345841,0.00310736,2957.0,2956.2,0.14111983]
[1769304358552,4.01455008,2956.9,2956.2,0.14111983]
[1769304358744,0.00310736,2957.0,2956.2,0.14111983]
[1769304358952,4.01455008,2956.9,2956.2,0.14111983]
[1769304359149,0.00310736,2957.0,2956.2,0.14111983]
[1769304359452,4.01455324,2956.9,2956.2,0.14111983]
[1769304359654,0.00310736,2957.0,2956.2,0.14111983]
[1769304359852,4.01412671,2956.9,2956.2,0.14111983]
[1769304360052,0.00310736,2957.0,2956.2,0.14111983]
[1769304360254,4.01410618,2956.9,2956.2,0.14111983]
[1769304360456,0.00310736,2957.0,2956.2,0.14111983]
[1769304360753,0.00310736,2957.0,2955.6,0.00302349]
[1769304360754,0.77812982,2956.8,2955.8,0.14111983]
[1769304360954,4.01384757,2956.7,2955.8,0.14111983]
[1769304361158,4.01384757,2956.6,2955.8,0.14111983]
[1769304361357,0.77812982,2956.8,2955.8,0.14111983]
[1769304361558,4.00357156,2956.7,2955.8,0.14111983]
[1769304361745,0.77812982,2956.8,2955.8,0.14111983]
[1769304361950,4.0036221,2956.7,2955.8,0.14111983]
[1769304362248,0.77812982,2956.8,2955.8,0.14111983]
[1769304362449,4.00254515,2956.7,2955.8,0.14111983]
[1769304362648,0.77812982,2956.8,2955.8,0.14111983]
[1769304362852,4.00247903,2956.7,2955.8,0.14111983]
[1769304363052,0.77812982,2956.6,2955.6,0.00302349]
[1769304363253,0.77812982,2956.4,2955.6,0.00302349]
[1769304370666,2.76512982,2956.4,2955.6,0.00302349]
[1769304380970,1.987,2956.4,2955.6,0.00302349]
[1769304385480,0.77865117,2956.1,2954.4,0.14868484]
[1769304385675,0.13952055,2956.0,2954.4,0.14868484]
[1769304386376,0.13952055,2956.0,2954.4,0.15226249]
[1769304396690,4.01865821,2955.9,2954.4,0.15226249]
[1769304396893,0.13952055,2956.0,2954.4,0.15226249]
[1769304397086,4.01869131,2955.9,2954.4,0.15226249]
[1769304397285,0.13952055,2956.0,2954.4,0.15226249]
[1769304397486,4.01842124,2955.9,2954.4,0.15226249]
[1769304397684,0.13952055,2956.0,2954.4,0.15226249]
[1769304397891,4.0184205,2955.9,2954.4,0.15226249]
[1769304398092,0.13952055,2956.0,2954.4,0.15226249]
[1769304398292,4.0184205,2955.9,2954.4,0.15226249]
[1769304398494,0.13952055,2956.0,2954.4,0.15226249]
[1769304398687,4.01823077,2955.9,2954.4,0.15226249]
[1769304398888,0.13952055,2956.0,2954.4,0.15226249]
[1769304399094,4.01818696,2955.9,2954.4,0.15226249]
[1769304399294,4.01818696,2955.8,2954.4,0.15226249]
[1769304399497,0.30893055,2956.0,2954.4,0.15226249]
[1769304399696,4.01763617,2955.9,2954.4,0.15226249]
[1769304399896,4.01763617,2955.8,2954.4,0.15226249]
[1769304400194,3.388,2955.9,2954.4,0.15226249]
[1769304400387,4.0173045,2955.8,2954.4,0.15226249]
[1769304400585,3.388,2955.9,2954.4,0.15226249]
[1769304400786,4.01730464,2955.8,2954.4,0.15226249]
[1769304400985,3.388,2955.9,2954.4,0.15226249]
[1769304401188,4.01730464,2955.8,2954.4,0.15226249]
[1769304401389,3.388,2955.9,2954.4,0.15226249]
[1769304401597,4.01701457,2955.8,2954.4,0.15226249]
[1769304401896,3.388,2955.9,2954.4,0.15226249]
[1769304402094,4.01701428,2955.8,2954.4,0.15226249]
[1769304402298,3.388,2955.9,2954.4,0.15226249]
[1769304402498,4.01680451,2955.8,2954.4,0.15226249]
[1769304402697,3.388,2955.9,2954.4,0.15226249]
[1769304402895,4.01680628,2955.8,2954.4,0.15226249]
[1769304403095,3.388,2955.9,2954.4,0.15226249]
[1769304403398,4.01679942,2955.8,2954.4,0.15226249]
[1769304403598,3.388,2955.9,2954.4,0.15226249]
[1769304403799,4.01666734,2955.8,2954.4,0.15226249]
[1769304404000,3.388,2955.9,2954.4,0.15226249]
[1769304404192,4.01666734,2955.8,2954.4,0.15226249]
[1769304404392,3.388,2955.9,2954.4,0.15226249]
[1769304404596,4.01660695,2955.8,2954.4,0.15226249]
[1769304404895,3.388,2955.9,2954.4,0.15226249]
[1769304405194,4.01660732,2955.8,2954.4,0.15226249]
[1769304405389,3.388,2955.9,2954.4,0.15226249]
[1769304405598,4.01670406,2955.8,2954.4,0.15226249]
[1769304405799,3.388,2955.9,2954.4,0.15226249]
[1769304405990,4.01670988,2955.8,2954.4,0.15226249]
[1769304406189,3.388,2955.9,2954.4,0.15226249]
[1769304406394,4.01687824,2955.8,2954.4,0.15226249]
[1769304406590,1.987,2955.8,2954.4,0.15226249]
[1769304411206,0.16941,2956.0,2954.4,0.93091366]
[1769304411407,4.0186767,2955.9,2954.5,0.14887087]
[1769304411703,1.987,2956.0,2954.5,0.14887087]
[1769304411704,4.0186767,2955.8,2954.5,0.14887087]
[1769304411900,1.987,2956.0,2954.5,0.14887087]
[1769304412098,4.01946626,2955.9,2954.5,0.14887087]
[1769304412299,4.01946626,2955.8,2954.5,0.14887087]
[1769304412500,1.987,2956.0,2954.5,0.14887087]
[1769304412701,4.02040867,2955.9,2954.5,0.14887087]
[1769304412902,4.02040867,2955.8,2954.5,0.14887087]
[1769304413100,1.987,2956.0,2954.5,0.14887087]
[1769304413302,3.388,2956.2,2954.5,0.14887087]
[1769304413303,4.0204059,2955.9,2954.5,0.14887087]
[1769304413498,1.987,2956.0,2954.5,0.14887087]
[1769304413695,4.02178804,2955.9,2954.5,0.14887087]
[1769304413899,1.987,2956.0,2954.5,0.14887087]
[1769304414200,4.02178815,2955.9,2954.5,0.14887087]
[1769304414407,4.02333446,2955.8,2954.5,0.14887087]
[1769304414606,1.987,2956.0,2954.5,0.14887087]
[1769304414905,4.02332985,2955.9,2954.5,0.14887087]
[1769304415108,4.02332985,2955.8,2954.5,0.14887087]
[1769304415306,1.987,2956.0,2954.5,0.14887087]
[1769304415503,4.0256217,2955.9,2954.5,0.14887087]
[1769304415706,4.0256217,2955.8,2954.5,0.14887087]
[1769304415908,1.987,2956.0,2954.5,0.14887087]
[1769304416111,4.0256207,2955.9,2954.5,0.14887087]
[1769304416301,2.112,2956.1,2954.6,0.14887087]
[1769304416608,4.02577139,2956.0,2954.6,0.14887087]
[1769304416907,4.02577139,2955.9,2954.7,0.14887087]
[1769304417109,2.112,2956.1,2954.7,0.14887087]
[1769304417312,4.02577029,2956.0,2954.7,0.14887087]
[1769304417603,1.987,2956.3,2954.8,0.14887087]
[1769304417810,4.02589947,2956.2,2954.8,0.14887087]
[1769304418001,4.02589947,2956.1,2954.8,0.14887087]
[1769304418202,4.02589947,2956.0,2954.8,0.14887087]
[1769304418502,1.987,2956.3,2954.8,0.14887087]
[1769304418697,4.02523146,2956.2,2954.8,0.14887087]
[1769304418901,4.02523146,2956.1,2954.8,0.14887087]
[1769304419108,1.987,2956.3,2954.8,0.14887087]
[1769304419310,4.02542459,2956.2,2954.8,0.14887087]
[1769304419502,4.02542459,2956.1,2954.8,0.14887087]
[1769304419698,1.987,2956.3,2954.8,0.14887087]
[1769304420002,4.02460963,2956.2,2954.8,0.14887087]
[1769304420301,4.02460963,2956.1,2954.8,0.14887087]
[1769304420504,1.987,2956.3,2954.8,0.14887087]
[1769304420698,4.02454749,2956.2,2954.8,0.14887087]
[1769304420905,4.02454749,2956.1,2954.8,0.14887087]
[1769304421105,1.987,2956.3,2954.8,0.14887087]
[1769304421304,4.02407907,2956.2,2954.8,0.14887087]
[1769304421506,4.02407907,2956.1,2954.8,0.14887087]
[1769304421706,2.13155614,2956.3,2954.8,0.14887087]
[1769304421906,4.02380078,2956.2,2954.8,0.14887087]
[1769304422211,4.02380078,2956.1,2954.8,0.14887087]
[1769304422413,2.13155614,2956.3,2954.8,0.14887087]
[1769304422608,4.02325752,2956.2,2954.8,0.14887087]
[1769304422815,4.02325752,2956.1,2954.8,0.14887087]
[1769304423010,2.13155614,2956.3,2954.8,0.14887087]
[1769304423212,4.02291568,2956.2,2954.8,0.14887087]
[1769304423413,4.02291568,2956.1,2954.8,0.14887087]
[1769304423713,2.13155614,2956.3,2954.8,0.14887087]
[1769304423912,4.02280804,2956.2,2954.8,0.14887087]
[1769304424215,2.13155614,2956.3,2954.8,0.14887087]
[1769304424413,4.02241717,2956.2,2954.8,0.14887087]
[1769304424614,2.13155614,2956.3,2954.8,0.14887087]
[1769304424813,4.02241655,2956.2,2954.8,0.14887087]
[1769304425015,2.13155614,2956.3,2954.8,0.14887087]
[1769304425216,4.02220413,2956.2,2954.8,0.14887087]
[1769304425414,2.13155614,2956.3,2954.8,0.14887087]
[1769304425614,4.02239153,2956.2,2954.8,0.14887087]
[1769304425814,2.13155614,2956.3,2954.8,0.14887087]
[1769304426017,4.02247669,2956.2,2954.8,0.14887087]
[1769304426220,2.13155614,2956.3,2954.8,0.14887087]
[1769304426414,4.0221926,2956.2,2954.8,0.14887087]
[1769304426715,2.13155614,2956.3,2954.8,0.14887087]
[1769304426910,4.02219307,2956.2,2954.8,0.14887087]
[1769304427107,2.13155614,2956.3,2954.8,0.14887087]
[1769304427310,4.02204128,2956.2,2954.8,0.14887087]
[1769304427519,1.987,2956.3,2954.8,0.14887087]
[1769304427818,4.02209761,2956.2,2954.8,0.14887087]
[1769304428018,1.987,2956.3,2954.8,0.14887087]
[1769304428219,4.02197293,2956.2,2954.8,0.14887087]
[1769304428419,1.987,2956.3,2954.8,0.14887087]
[1769304428623,4.02182329,2956.2,2954.8,0.14887087]
[1769304428924,2.117,2956.3,2954.9,0.14711152]
[1769304429121,4.02179968,2956.2,2954.9,0.14711152]
[1769304429419,2.117,2956.3,2954.9,0.14711152]
[1769304429620,4.02170416,2956.2,2954.9,0.14711152]
[1769304429921,2.117,2956.3,2954.9,0.14711152]
[1769304430219,4.02170164,2956.2,2954.9,0.14711152]
[1769304430419,1.987,2956.3,2954.9,0.14711152]
[1769304430622,4.02167928,2956.2,2954.9,0.14711152]
[1769304430823,1.987,2956.3,2954.9,0.14711152]
[1769304431025,4.02167938,2956.2,2954.9,0.14711152]
[1769304431322,1.987,2956.3,2954.9,0.14711152]
[1769304431526,4.02155602,2956.2,2954.9,0.14711152]
[1769304431727,1.987,2956.3,2954.9,0.14711152]
[1769304431925,4.02145289,2956.2,2954.9,0.14711152]
[1769304432125,1.987,2956.3,2954.9,0.14711152]
[1769304432325,4.02136376,2956.2,2954.9,0.14711152]